fUST/lending_fUST_20250417
["ID","MTS","AMOUNT","RATE_DAILY","PERIOD"]
[358198095,1744830640267,-1338.83,0.00024657,2]
[358198097,1744830640276,-500.0,0.00024657,2]
[358198099,1744830640285,-232.64684786,0.00024657,2]
[358198101,1744830640295,-500.0,0.00024657,2]
[358198103,1744830640305,-500.0,0.00024657,2]
[358198105,1744830640315,-500.0,0.00024657,2]
[358198107,1744830640325,-500.0,0.00024657,2]
[358198109,1744830640334,-500.0,0.00024657,2]
[358198111,1744830640344,-1303.04,0.00024657,2]
[358198113,1744830640355,-994.01,0.00024657,2]
[358198115,1744830640366,-701.27,0.00024657,2]
[358198117,1744830640375,-785.81,0.00024657,2]
[358198120,1744830640385,-771.02,0.00024657,2]
[358198122,1744830640395,-500.0,0.00024657,2]
[358198124,1744830640404,-500.0,0.00024657,2]
[358198126,1744830640413,-500.0,0.00024657,2]
[358198128,1744830640422,-1042.57,0.00024657,2]
[358198130,1744830640432,-696.9,0.00024657,2]
[358198132,1744830640441,-1653.68,0.00024657,2]
[358198134,1744830640451,-500.0,0.00024657,2]
[358198136,1744830640460,-500.0,0.00024657,2]
[358198138,1744830640470,-500.0,0.00024657,2]
[358198140,1744830640479,-500.0,0.00024657,2]
[358198142,1744830640489,-1022.07,0.00024657,2]
[358198144,1744830640498,-500.0,0.00024657,2]
[358198146,1744830640508,-500.0,0.00024657,2]
[358198148,1744830640518,-500.0,0.00024657,2]
[358198150,1744830640527,-500.0,0.00024657,2]
[358198152,1744830640537,-720.48,0.00024657,2]
[358198154,1744830640546,-500.0,0.00024657,2]
[358198156,1744830640556,-500.0,0.00024657,2]
[358198158,1744830640566,-778.12,0.00024657,2]
[358198160,1744830640576,-644.71,0.00024657,2]
[358198162,1744830640586,-500.0,0.00024657,2]
[358198165,1744830640596,-500.0,0.00024657,2]
[358198167,1744830640610,-1268.9,0.00024657,2]
[358198169,1744830640620,-548.37,0.00024657,2]
[358198171,1744830640630,-560.55034743,0.00024657,2]
[358198173,1744830640639,-500.0,0.00024657,2]
[358198175,1744830640649,-500.0,0.00024657,2]
[358198177,1744830640659,-5682.14,0.00024657,2]
[358198179,1744830640668,-644.86062409,0.00024657,2]
[358198181,1744830640678,-934.78,0.00024657,2]
[358198183,1744830640689,-991.29,0.00024657,2]
[358198185,1744830640699,-500.0,0.00024657,2]
[358198187,1744830640708,-500.0,0.00024657,2]
[358198189,1744830640718,-1915.36,0.00024657,2]
[358198191,1744830640728,-366.2865838,0.00024657,2]
[358198193,1744830640738,-262.83281415,0.00024657,2]
[358198195,1744830640748,-500.0,0.00024657,2]
[358198197,1744830640759,-500.0,0.00024657,2]
[358198199,1744830640769,-500.0,0.00024657,2]
[358198201,1744830640780,-500.0,0.00024657,2]
[358198203,1744830640791,-500.0,0.00024657,2]
[358198205,1744830640801,-573.06,0.00024657,2]
[358198207,1744830640811,-1395.44,0.00024657,2]
[358198209,1744830640821,-500.0,0.00024657,2]
[358198211,1744830640831,-500.0,0.00024657,2]
[358198214,1744830640841,-500.0,0.00024657,2]
[358198216,1744830640854,-1587.3,0.00024657,2]
[358198218,1744830640864,-500.0,0.00024657,2]
[358198220,1744830640874,-500.0,0.00024657,2]
[358198222,1744830640883,-500.0,0.00024657,2]
[358198224,1744830640893,-500.0,0.00024657,2]
[358198226,1744830640903,-500.0,0.00024657,2]
[358198228,1744830640912,-533.08,0.00024657,2]
[358198230,1744830640922,-500.0,0.00024657,2]
[358198232,1744830640931,-500.0,0.00024657,2]
[358198233,1744830640941,-752.34,0.00024657,2]
[358198234,1744830640950,-500.0,0.00024657,2]
[358198235,1744830640959,-500.0,0.00024657,2]
[358198236,1744830640968,-500.0,0.00024657,2]
[358198237,1744830640978,-500.0,0.00024657,2]
[358198238,1744830640987,-500.0,0.00024657,2]
[358198239,1744830640996,-500.0,0.00024657,2]
[358198240,1744830641006,-500.0,0.00024657,2]
[358198241,1744830641015,-500.0,0.00024657,2]
[358198242,1744830641024,-608.78,0.00024657,2]
[358198243,1744830641034,-500.0,0.00024657,2]
[358198244,1744830641044,-500.0,0.00024657,2]
[358198245,1744830641054,-754.04,0.00024657,2]
[358198246,1744830641063,-500.0,0.00024657,2]
[358198247,1744830641073,-500.0,0.00024657,2]
[358198248,1744830641082,-1060.81,0.00024657,2]
[358198249,1744830641092,-635.98,0.00024657,2]
[358198250,1744830641104,-500.0,0.00024657,2]
[358198251,1744830641113,-150.7964842,0.00024657,2]
[358198252,1744830641123,-598.77,0.00024657,2]
[358198253,1744830641132,-676.59,0.00024657,2]
[358198254,1744830641142,-1308.55,0.00024657,2]
[358198255,1744830641152,-500.0,0.00024657,2]
[358198256,1744830641161,-500.0,0.00024657,2]
[358198257,1744830641171,-500.0,0.00024657,2]
[358198258,1744830641180,-500.0,0.00024657,2]
[358198259,1744830641190,-500.0,0.00024657,2]
[358198260,1744830641201,-500.0,0.00024657,2]
[358198261,1744830641210,-500.0,0.00024657,2]
[358198262,1744830641220,-500.0,0.00024657,2]
[358198263,1744830641230,-694.94,0.00024657,2]
[358198264,1744830641240,-500.0,0.00024657,2]
[358198265,1744830641250,-500.0,0.00024657,2]
[358198266,1744830641260,-500.0,0.00024657,2]
[358198267,1744830641269,-562.10566099,0.00024657,2]
[358198268,1744830641278,-759.91,0.00024657,2]
[358198269,1744830641289,-500.0,0.00024657,2]
[358198270,1744830641301,-2298.71,0.00024657,2]
[358198271,1744830641311,-500.0,0.00024657,2]
[358198272,1744830641320,-500.0,0.00024657,2]
[358198273,1744830641330,-500.0,0.00024657,2]
[358198274,1744830641340,-577.61,0.00024657,2]
[358198275,1744830641350,-1744.54,0.00024657,2]
[358198276,1744830641360,-533.05,0.00024657,2]
[358198277,1744830641370,-2050.47,0.00024657,2]
[358198278,1744830641379,-1177.53,0.00024657,2]
[358198279,1744830641389,-500.0,0.00024657,2]
[358198280,1744830641399,-500.0,0.00024657,2]
[358198281,1744830641408,-500.0,0.00024657,2]
[358198282,1744830641418,-500.0,0.00024657,2]
[358198283,1744830641428,-500.0,0.00024657,2]
[358198284,1744830641438,-524.21,0.00024657,2]
[358198285,1744830641448,-545.14,0.00024657,2]
[358198286,1744830641457,-500.0,0.00024657,2]
[358198287,1744830641467,-500.0,0.00024657,2]
[358198288,1744830641477,-500.0,0.00024657,2]
[358198289,1744830641487,-500.0,0.00024657,2]
[358198290,1744830641497,-511.79,0.00024657,2]
[358198291,1744830641506,-500.0,0.00024657,2]
[358198292,1744830641517,-1503.88,0.00024657,2]
[358198293,1744830641527,-500.0,0.00024657,2]
[358198294,1744830641536,-785.25,0.00024657,2]
[358198295,1744830641546,-500.0,0.00024657,2]
[358198296,1744830641555,-500.0,0.00024657,2]
[358198297,1744830641566,-500.0,0.00024657,2]
[358198298,1744830641575,-500.0,0.00024657,2]
[358198299,1744830641585,-701.56,0.00024657,2]
[358198300,1744830641595,-503.31,0.00024657,2]
[358198301,1744830641605,-1616.19,0.00024657,2]
[358198302,1744830641618,-1134.65,0.00024657,2]
[358198303,1744830641628,-500.0,0.00024657,2]
[358198304,1744830641638,-500.0,0.00024657,2]
[358198305,1744830641647,-500.0,0.00024657,2]
[358198306,1744830641659,-500.0,0.00024657,2]
[358198307,1744830641668,-642.7,0.00024657,2]
[358198308,1744830641678,-500.0,0.00024657,2]
[358198309,1744830641689,-500.0,0.00024657,2]
[358198310,1744830641698,-500.0,0.00024657,2]
[358198311,1744830641708,-600.34270891,0.00024657,2]
[358198312,1744830641718,-766.78,0.00024657,2]
[358198313,1744830641729,-882.16,0.00024657,2]
[358198314,1744830641739,-500.0,0.00024657,2]
[358198315,1744830641749,-1191.51,0.00024657,2]
[358198316,1744830641759,-500.0,0.00024657,2]
[358198317,1744830641769,-504.13,0.00024657,2]
[358198319,1744830641779,-500.0,0.00024657,2]
[358198321,1744830641790,-500.0,0.00024657,2]
[358198323,1744830641800,-574.15,0.00024657,2]
[358198325,1744830641810,-843.37,0.00024657,2]
[358198327,1744830641819,-578.16,0.00024657,2]
[358198329,1744830641829,-500.0,0.00024657,2]
[358198340,1744830642051,-791.15,0.00024657,2]
[358198342,1744830642062,-500.0,0.00024657,2]
[358198344,1744830642071,-500.0,0.00024657,2]
[358198346,1744830642082,-500.0,0.00024657,2]
[358198348,1744830642091,-500.0,0.00024657,2]
[358198350,1744830642102,-1221.99,0.00024657,2]
[358198352,1744830642112,-1308.51,0.00024657,2]
[358198354,1744830642121,-1336.81,0.00024657,2]
[358198356,1744830642131,-2286.69,0.00024657,2]
[358198358,1744830642140,-500.0,0.00024657,2]
[358198360,1744830642150,-1042.78,0.00024657,2]
[358198362,1744830642160,-641.21,0.00024657,2]
[358198364,1744830642170,-500.0,0.00024657,2]
[358198366,1744830642180,-500.0,0.00024657,2]
[358198368,1744830642189,-835.58,0.00024657,2]
[358198370,1744830642199,-500.0,0.00024657,2]
[358198372,1744830642208,-1146.28,0.00024657,2]
[358198374,1744830642217,-500.0,0.00024657,2]
[358198376,1744830642227,-998.11,0.00024657,2]
[358198378,1744830642237,-500.0,0.00024657,2]
[358198380,1744830642246,-742.7,0.00024657,2]
[358198382,1744830642255,-1370.02,0.00024657,2]
[358198384,1744830642265,-640.48,0.00024657,2]
[358198386,1744830642275,-500.0,0.00024657,2]
[358198388,1744830642285,-500.0,0.00024657,2]
[358198390,1744830642294,-500.0,0.00024657,2]
[358198392,1744830642303,-500.0,0.00024657,2]
[358198394,1744830642313,-500.0,0.00024657,2]
[358198396,1744830642322,-811.05,0.00024657,2]
[358198398,1744830642332,-500.0,0.00024657,2]
[358198400,1744830642342,-500.0,0.00024657,2]
[358198402,1744830642352,-500.0,0.00024657,2]
[358198404,1744830642361,-1470.42,0.00024657,2]
[358198406,1744830642371,-500.0,0.00024657,2]
[358198408,1744830642380,-597.64,0.00024657,2]
[358198411,1744830642390,-500.0,0.00024657,2]
[358198413,1744830642403,-919.52,0.00024657,2]
[358198415,1744830642413,-500.0,0.00024657,2]
[358198417,1744830642422,-500.0,0.00024657,2]
[358198418,1744830642432,-658.72,0.00024657,2]
[358198420,1744830642441,-813.48,0.00024657,2]
[358198422,1744830642451,-500.0,0.00024657,2]
[358198424,1744830642461,-500.0,0.00024657,2]
[358198427,1744830642471,-806.51,0.00024657,2]
[358198429,1744830642480,-1560.23,0.00024657,2]
[358198431,1744830642489,-500.0,0.00024657,2]
[358198433,1744830642499,-500.0,0.00024657,2]
[358198435,1744830642508,-500.0,0.00024657,2]
[358198437,1744830642517,-551.02,0.00024657,2]
[358198439,1744830642527,-1452.39,0.00024657,2]
[358198441,1744830642536,-562.03,0.00024657,2]
[358198443,1744830642546,-536.77199732,0.00024657,2]
[358198445,1744830642555,-866.86,0.00024657,2]
[358198447,1744830642565,-718.19,0.00024657,2]
[358198449,1744830642575,-500.0,0.00024657,2]
[358198451,1744830642584,-500.0,0.00024657,2]
[358198453,1744830642593,-500.0,0.00024657,2]
[358198455,1744830642602,-500.0,0.00024657,2]
[358198457,1744830642616,-500.0,0.00024657,2]
[358198459,1744830642626,-500.0,0.00024657,2]
[358198461,1744830642635,-631.95,0.00024657,2]
[358198463,1744830642644,-572.9,0.00024657,2]
[358198464,1744830642655,-762.12,0.00024657,2]
[358198467,1744830642664,-2117.98,0.00024657,2]
[358198469,1744830642674,-500.0,0.00024657,2]
[358198471,1744830642683,-500.0,0.00024657,2]
[358198473,1744830642694,-500.0,0.00024657,2]
[358198475,1744830642704,-500.0,0.00024657,2]
[358198477,1744830642713,-500.0,0.00024657,2]
[358198479,1744830642722,-1224.25,0.00024657,2]
[358198481,1744830642731,-500.0,0.00024657,2]
[358198483,1744830642741,-545.65161684,0.00024657,2]
[358198485,1744830642750,-500.0,0.00024657,2]
[358198487,1744830642759,-500.0,0.00024657,2]
[358198489,1744830642768,-500.0,0.00024657,2]
[358198491,1744830642778,-998.11,0.00024657,2]
[358198493,1744830642788,-974.98,0.00024657,2]
[358198495,1744830642797,-549.66430367,0.00024657,2]
[358198497,1744830642806,-500.0,0.00024657,2]
[358198499,1744830642816,-500.0,0.00024657,2]
[358198501,1744830642825,-886.78,0.00024657,2]
[358198503,1744830642836,-500.0,0.00024657,2]
[358198505,1744830642846,-500.0,0.00024657,2]
[358198507,1744830642856,-500.0,0.00024657,2]
[358198509,1744830642866,-500.0,0.00024657,2]
[358198511,1744830642876,-1245.84,0.00024657,2]
[358198513,1744830642885,-500.0,0.00024657,2]
[358198515,1744830642895,-558.44,0.00024657,2]
[358198517,1744830642904,-500.0,0.00024657,2]
[358198519,1744830642913,-500.0,0.00024657,2]
[358198521,1744830642922,-500.0,0.00024657,2]
[358198523,1744830642932,-500.0,0.00024657,2]
[358198525,1744830642941,-500.0,0.00024657,2]
[358198527,1744830642950,-955.81,0.00024657,2]
[358198529,1744830642959,-500.0,0.00024657,2]
[358198531,1744830642968,-879.77,0.00024657,2]
[358198533,1744830642978,-500.0,0.00024657,2]
[358198535,1744830642987,-500.0,0.00024657,2]
[358198537,1744830642996,-1071.93,0.00024657,2]
[358198539,1744830643005,-975.22,0.00024657,2]
[358198541,1744830643014,-500.0,0.00024657,2]
[358198543,1744830643024,-555.43,0.00024657,2]
[358198545,1744830643033,-500.0,0.00024657,2]
[358198547,1744830643042,-500.0,0.00024657,2]
[358198549,1744830643051,-858.67,0.00024657,2]
[358198551,1744830643060,-500.0,0.00024657,2]
[358198553,1744830643070,-500.0,0.00024657,2]
[358198555,1744830643079,-500.0,0.00024657,2]
[358198557,1744830643089,-500.0,0.00024657,2]
[358198559,1744830643100,-500.0,0.00024657,2]
[358198561,1744830643111,-528.89,0.00024657,2]
[358198564,1744830643121,-500.0,0.00024657,2]
[358198567,1744830643130,-2970.4,0.00024657,2]
[358198570,1744830643140,-500.0,0.00024657,2]
[358198573,1744830643149,-500.0,0.00024657,2]
[358198575,1744830643159,-811.92,0.00024657,2]
[358198579,1744830643168,-542.61,0.00024657,2]
[358198583,1744830643177,-944.97,0.00024657,2]
[358198586,1744830643187,-500.0,0.00024657,2]
[358198589,1744830643196,-500.0,0.00024657,2]
[358198593,1744830643205,-1431.92,0.00024657,2]
[358198596,1744830643215,-1502.17,0.00024657,2]
[358198599,1744830643224,-500.0,0.00024657,2]
[358198601,1744830643233,-500.0,0.00024657,2]
[358198603,1744830643242,-500.0,0.00024657,2]
[358198605,1744830643252,-500.0,0.00024657,2]
[358198608,1744830643266,-1087.07,0.00024657,2]
[358198610,1744830643276,-727.07,0.00024657,2]
[358198612,1744830643286,-1464.53,0.00024657,2]
[358198614,1744830643296,-754.93,0.00024657,2]
[358198616,1744830643306,-500.0,0.00024657,2]
[358198618,1744830643316,-272.58623144,0.00024657,2]
[358198620,1744830643327,-500.0,0.00024657,2]
[358198622,1744830643337,-1446.44,0.00024657,2]
[358198624,1744830643348,-500.0,0.00024657,2]
[358198626,1744830643361,-648.79,0.00024657,2]
[358198628,1744830643371,-500.0,0.00024657,2]
[358198630,1744830643381,-500.0,0.00024657,2]
[358198632,1744830643392,-500.0,0.00024657,2]
[358198634,1744830643402,-1000.0,0.00024657,2]
[358198636,1744830643412,-977.87,0.00024657,2]
[358198638,1744830643422,-500.0,0.00024657,2]
[358198640,1744830643433,-789.19,0.00024657,2]
[358198642,1744830643443,-500.0,0.00024657,2]
[358198644,1744830643454,-500.0,0.00024657,2]
[358198646,1744830643464,-1462.43,0.00024657,2]
[358198648,1744830643473,-627.68,0.00024657,2]
[358198650,1744830643484,-746.58,0.00024657,2]
[358198652,1744830643493,-607.39,0.00024657,2]
[358198654,1744830643502,-500.0,0.00024657,2]
[358198656,1744830643512,-500.0,0.00024657,2]
[358198659,1744830643523,-500.0,0.00024657,2]
[358198661,1744830643533,-500.0,0.00024657,2]
[358198663,1744830643543,-2424.36,0.00024657,2]
[358198665,1744830643553,-500.0,0.00024657,2]
[358198667,1744830643562,-500.0,0.00024657,2]
[358198669,1744830643572,-500.0,0.00024657,2]
[358198671,1744830643582,-1000.0,0.00024657,14]
[358198673,1744830643592,-1000.0,0.00024657,14]
[358198675,1744830643603,-1000.0,0.00024657,14]
[358198677,1744830643622,-1000.0,0.00024657,14]
[358198679,1744830643632,-1000.0,0.00024657,14]
[358198681,1744830643642,-1000.0,0.00024657,14]
[358198683,1744830643651,-500.0,0.00024657,2]
[358198685,1744830643662,-500.0,0.00024657,2]
[358198687,1744830643672,-194.404403,0.00024657,14]
[358198689,1744830643682,-500.0,0.00024657,2]
[358198691,1744830643694,-328.34998022,0.00024657,2]
[358198693,1744830643704,-2179.54,0.00024657,2]
[358198695,1744830643715,-500.0,0.00024657,2]
[358198697,1744830643725,-500.0,0.00024657,2]
[358198700,1744830643736,-500.0,0.00024657,2]
[358198702,1744830643747,-500.0,0.00024657,2]
[358198704,1744830643756,-500.0,0.00024657,2]
[358198706,1744830643766,-500.0,0.00024657,2]
[358198708,1744830643776,-500.0,0.00024657,2]
[358198710,1744830643786,-627.29966823,0.00024657,2]
[358198712,1744830643795,-2511.35,0.00024657,2]
[358198714,1744830643805,-500.0,0.00024657,2]
[358198716,1744830643814,-500.0,0.00024657,2]
[358198718,1744830643824,-1847.4,0.00024657,2]
[358198720,1744830643834,-500.0,0.00024657,2]
[358198722,1744830643844,-826.74,0.00024657,2]
[358198724,1744830643854,-1000.0,0.00024657,2]
[358198726,1744830643864,-500.0,0.00024657,2]
[358198728,1744830643873,-2209.11,0.00024657,2]
[358198730,1744830643883,-500.0,0.00024657,2]
[358198732,1744830643893,-500.0,0.00024657,2]
[358198734,1744830643902,-500.82,0.00024657,2]
[358198736,1744830643911,-500.0,0.00024657,2]
[358198738,1744830643922,-500.0,0.00024657,2]
[358198740,1744830643932,-500.0,0.00024657,2]
[358198742,1744830643941,-500.0,0.00024657,2]
[358198744,1744830643951,-500.0,0.00024657,2]
[358198746,1744830643959,-500.0,0.00024657,2]
[358198748,1744830643969,-500.0,0.00024657,2]
[358198750,1744830643978,-826.5,0.00024657,2]
[358198752,1744830643987,-500.0,0.00024657,2]
[358198754,1744830643997,-1099.78,0.00024657,2]
[358198756,1744830644007,-500.0,0.00024657,2]
[358198758,1744830644017,-1185.58,0.00024657,2]
[358198760,1744830644026,-1656.62,0.00024657,2]
[358198762,1744830644036,-2316.39,0.00024657,2]
[358198764,1744830644045,-536.36,0.00024657,2]
[358198766,1744830644055,-931.59,0.00024657,2]
[358198768,1744830644065,-500.0,0.00024657,2]
[358198770,1744830644074,-500.0,0.00024657,2]
[358198772,1744830644084,-501.16050173,0.00024657,2]
[358198774,1744830644094,-500.0,0.00024657,2]
[358198776,1744830644103,-500.0,0.00024657,2]
[358198778,1744830644113,-500.0,0.00024657,2]
[358198780,1744830644123,-500.0,0.00024657,2]
[358198783,1744830644137,-500.0,0.00024657,2]
[358198785,1744830644147,-500.0,0.00024657,2]
[358198787,1744830644156,-500.0,0.00024657,2]
[358198789,1744830644165,-785.58,0.00024657,2]
[358198791,1744830644175,-1289.69,0.00024657,2]
[358198793,1744830644184,-500.0,0.00024657,2]
[358198795,1744830644194,-553.9,0.00024657,2]
[358198797,1744830644203,-500.0,0.00024657,2]
[358198799,1744830644213,-500.0,0.00024657,2]
[358198801,1744830644223,-500.0,0.00024657,2]
[358198803,1744830644232,-1701.68,0.00024657,2]
[358198805,1744830644241,-823.34,0.00024657,2]
[358198807,1744830644251,-500.0,0.00024657,2]
[358198809,1744830644260,-478.85522109,0.00024657,2]
[358198811,1744830644270,-500.0,0.00024657,2]
[358198813,1744830644280,-500.0,0.00024657,2]
[358198815,1744830644290,-500.0,0.00024657,2]
[358198817,1744830644299,-500.0,0.00024657,2]
[358198819,1744830644310,-500.0,0.00024657,2]
[358198822,1744830644320,-500.0,0.00024657,2]
[358198824,1744830644330,-517.55,0.00024657,2]
[358198826,1744830644340,-500.0,0.00024657,2]
[358198828,1744830644350,-500.0,0.00024657,2]
[358198830,1744830644360,-500.0,0.00024657,2]
[358198831,1744830644370,-1118.91,0.00024657,2]
[358198832,1744830644379,-887.07,0.00024657,2]
[358198833,1744830644389,-807.86,0.00024657,2]
[358198834,1744830644399,-500.0,0.00024657,2]
[358198835,1744830644408,-547.92,0.00024657,2]
[358198836,1744830644418,-500.0,0.00024657,2]
[358198837,1744830644427,-500.0,0.00024657,2]
[358198839,1744830644436,-691.9,0.00024657,2]
[358198841,1744830644446,-500.0,0.00024657,2]
[358198843,1744830644455,-1403.6,0.00024657,2]
[358198845,1744830644465,-1756.94,0.00024657,2]
[358198847,1744830644475,-500.0,0.00024657,2]
[358198848,1744830644484,-545.3,0.00024657,2]
[358198850,1744830644493,-500.0,0.00024657,2]
[358198852,1744830644503,-1390.22,0.00024657,2]
[358198854,1744830644512,-500.0,0.00024657,2]
[358198856,1744830644522,-500.0,0.00024657,2]
[358198858,1744830644531,-500.0,0.00024657,2]
[358198860,1744830644541,-500.0,0.00024657,2]
[358198862,1744830644551,-562.33,0.00024657,2]
[358198865,1744830644561,-500.0,0.00024657,2]
[358198867,1744830644571,-616.23,0.00024657,2]
[358198869,1744830644581,-500.0,0.00024657,2]
[358198871,1744830644591,-500.0,0.00024657,2]
[358198873,1744830644601,-500.0,0.00024657,2]
[358198875,1744830644617,-500.0,0.00024657,2]
[358198877,1744830644626,-830.77,0.00024657,2]
[358198879,1744830644635,-1076.71,0.00024657,2]
[358198881,1744830644645,-500.0,0.00024657,2]
[358198883,1744830644656,-585.35,0.00024657,2]
[358198885,1744830644666,-500.0,0.00024657,2]
[358198887,1744830644675,-891.5,0.00024657,2]
[358198889,1744830644687,-2053.16,0.00024657,2]
[358198891,1744830644697,-528.94,0.00024657,2]
[358198893,1744830644708,-500.0,0.00024657,2]
[358198895,1744830644718,-500.0,0.00024657,2]
[358198897,1744830644729,-500.0,0.00024657,2]
[358198899,1744830644740,-776.31,0.00024657,2]
[358198902,1744830644750,-2648.87,0.00024657,2]
[358198904,1744830644760,-1274.6,0.00024657,2]
[358198906,1744830644770,-1246.43,0.00024657,2]
[358198908,1744830644780,-950.69,0.00024657,2]
[358198910,1744830644789,-555.54,0.00024657,2]
[358198912,1744830644800,-2119.99,0.00024657,2]
[358198914,1744830644809,-500.0,0.00024657,2]
[358198916,1744830644819,-500.0,0.00024657,2]
[358198918,1744830644829,-500.0,0.00024657,2]
[358198920,1744830644839,-682.9,0.00024657,2]
[358198922,1744830644848,-500.0,0.00024657,2]
[358198924,1744830644860,-599.11,0.00024657,2]
[358198926,1744830644874,-500.0,0.00024657,2]
[358198928,1744830644884,-2026.28,0.00024657,2]
[358198930,1744830644894,-500.0,0.00024657,2]
[358198932,1744830644905,-500.0,0.00024657,2]
[358198934,1744830644916,-500.0,0.00024657,2]
[358198936,1744830644926,-500.0,0.00024657,2]
[358198938,1744830644936,-500.0,0.00024657,2]
[358198940,1744830644947,-590.87,0.00024657,2]
[358198942,1744830644957,-500.0,0.00024657,2]
[358198944,1744830644967,-500.0,0.00024657,2]
[358198946,1744830644976,-500.0,0.00024657,2]
[358198949,1744830644986,-500.0,0.00024657,2]
[358198951,1744830644997,-500.0,0.00024657,2]
[358198953,1744830645006,-500.0,0.00024657,2]
[358198955,1744830645016,-500.0,0.00024657,2]
[358198957,1744830645025,-613.87,0.00024657,2]
[358198959,1744830645035,-500.0,0.00024657,2]
[358198961,1744830645045,-500.0,0.00024657,2]
[358198963,1744830645055,-1694.15,0.00024657,2]
[358198965,1744830645064,-1850.91,0.00024657,2]
[358198967,1744830645074,-500.0,0.00024657,2]
[358198969,1744830645084,-1398.35,0.00024657,2]
[358198971,1744830645094,-500.0,0.00024657,2]
[358198973,1744830645104,-500.0,0.00024657,2]
[358198975,1744830645115,-591.42327418,0.00024657,2]
[358198977,1744830645125,-500.0,0.00024657,2]
[358198979,1744830645134,-500.0,0.00024657,2]
[358198981,1744830645145,-500.0,0.00024657,2]
[358198983,1744830645155,-500.0,0.00024657,2]
[358198985,1744830645164,-500.0,0.00024657,2]
[358198987,1744830645174,-1381.34,0.00024657,2]
[358198989,1744830645183,-500.0,0.00024657,2]
[358198991,1744830645193,-500.0,0.00024657,2]
[358198993,1744830645203,-500.0,0.00024657,2]
[358198995,1744830645214,-593.55,0.00024657,2]
[358198997,1744830645225,-766.85,0.00024657,2]
[358198999,1744830645234,-520.68,0.00024657,2]
[358199001,1744830645244,-825.8,0.00024657,2]
[358199003,1744830645254,-500.0,0.00024657,2]
[358199005,1744830645264,-500.0,0.00024657,2]
[358199007,1744830645273,-500.0,0.00024657,2]
[358199010,1744830645283,-1477.34,0.00024657,2]
[358199012,1744830645293,-1283.3,0.00024657,2]
[358199014,1744830645302,-874.55,0.00024657,2]
[358199016,1744830645311,-500.0,0.00024657,2]
[358199018,1744830645321,-1473.39,0.00024657,2]
[358199020,1744830645332,-500.0,0.00024657,2]
[358199022,1744830645343,-21097.38,0.00024657,2]
[358199024,1744830645354,-500.0,0.00024657,2]
[358199026,1744830645370,-593.99,0.00024657,2]
[358199028,1744830645381,-500.0,0.00024657,2]
[358199030,1744830645392,-581.7,0.00024657,2]
[358199051,1744830645601,-500.0,0.00024657,2]
[358199053,1744830645618,-500.0,0.00024657,2]
[358199055,1744830645628,-1881.06,0.00024657,2]